bitfinex/quotes_ETHUSD_20250708
["timestamp","ask_amount","ask_price","bid_price","bid_amount"]
[1751994814022,10.0,2622.0,2620.9,1.30656157]
[1751994814023,3.81528318,2621.1,2620.9,1.30656157]
[1751994814233,0.8004,2621.4,2620.6,1.67174369]
[1751994814546,0.8004,2621.4,2620.7,1.30662994]
[1751994814547,3.814901,2621.3,2620.7,1.30662994]
[1751994814913,3.814901,2621.3,2620.7,1.34478768]
[1751994815119,3.814901,2621.3,2620.7,0.03815774]
[1751994815297,0.8004,2621.4,2620.7,5.16081108]
[1751994815298,3.81505421,2621.2,2620.7,5.16081108]
[1751994815499,3.81505421,2621.2,2620.7,3.85385421]
[1751994815703,3.81505421,2621.2,2620.8,1.30711195]
[1751994815899,3.81522062,2621.1,2620.7,0.03815774]
[1751994816205,0.8004,2621.4,2620.4,0.8122]
[1751994816431,0.8004,2621.4,2620.5,0.03816065]
[1751994816841,3.81501972,2621.3,2620.8,3.8155545]
[1751994817035,3.81501972,2621.3,2620.6,3.85396627]
[1751994817036,3.81506278,2621.2,2620.6,3.85396627]
[1751994817241,0.8004,2621.4,2620.6,3.85396627]
[1751994817242,0.8004,2621.4,2620.6,0.0381592]
[1751994817445,3.81505913,2621.2,2620.2,3.81641204]
[1751994817652,3.81584831,2620.7,2620.2,3.81641204]
[1751994818019,3.81520767,2621.1,2620.1,0.03816648]
[1751994818218,10.8004,2621.4,2620.2,3.81649452]
[1751994818409,10.8004,2621.4,2620.1,3.85478253]
[1751994818610,10.8004,2621.4,2620.1,0.03816648]
[1751994818611,3.81608328,2620.5,2620.1,0.03816648]
[1751994818846,3.81599704,2620.6,2620.1,0.03816648]
[1751994819156,3.81571937,2620.8,2620.1,0.03816648]
[1751994819370,17.26606899,2621.2,2620.2,3.85453945]
[1751994819670,3.8159906,2620.6,2620.1,3.85474584]
[1751994819817,3.81586364,2620.7,2619.9,3.81693957]
[1751994820012,3.81558306,2620.9,2620.2,3.81636452]
[1751994820417,3.81557572,2620.9,2620.4,3.81619501]
[1751994820823,17.26605894,2621.2,2620.2,3.85460465]
[1751994821027,3.81575128,2620.8,2620.3,5.13031904]
[1751994821231,3.81572072,2620.8,2620.4,1.31396818]
[1751994821430,3.8156594,2620.8,2620.5,0.1904]
[1751994821630,3.81578635,2620.7,2620.5,0.1904]
[1751994821839,3.81567908,2620.8,2620.5,0.1904]
[1751994822527,3.81548978,2620.9,2620.5,0.1904]
[1751994822528,3.81584439,2620.7,2620.5,0.1904]
[1751994822927,3.81548323,2620.9,2620.5,0.1904]
[1751994823231,3.81534885,2621.0,2620.5,3.81597078]
[1751994823453,3.81549297,2620.9,2620.8,0.1904]
[1751994823827,3.81541501,2621.0,2620.8,0.1904]
[1751994824034,3.81562904,2620.8,2620.3,3.85440539]
[1751994824240,3.815544,2620.9,2620.6,0.1904]
[1751994824548,3.815544,2620.9,2620.7,1.31732]
[1751994824945,0.1904,2621.1,2620.7,1.31732]
[1751994825146,4.0056012,2621.1,2620.7,1.31732]
[1751994825325,3.81559217,2620.9,2620.8,1.31732]
[1751994825727,3.81559217,2620.9,2620.6,0.1904]
[1751994826149,3.81577441,2620.7,2620.6,0.1904]
[1751994826548,3.81577441,2620.7,2620.2,3.81642721]
[1751994826772,3.81568913,2620.8,2620.5,0.1904]
[1751994827084,3.81584964,2620.7,2620.5,0.1904]
[1751994827293,3.81573377,2620.8,2620.5,0.1904]
[1751994827450,0.1904,2620.9,2620.5,0.1904]
[1751994827650,13.343,2621.6,2620.7,0.1904]
[1751994827869,3.81496537,2621.3,2621.0,0.1904]
[1751994828290,0.1904,2621.5,2621.0,0.1904]
[1751994828475,0.1904,2621.5,2621.2,0.1904]
[1751994828476,3.81469438,2621.5,2621.2,0.1904]
[1751994828785,13.343,2621.6,2621.2,0.1904]
[1751994828984,13.343,2621.6,2621.3,3.8148064]
[1751994829284,13.343,2621.6,2621.5,0.1904]
[1751994829486,4.56502322,2621.8,2621.5,0.1904]
[1751994830081,4.56505673,2621.8,2621.5,0.1904]
[1751994830287,13.337,2621.9,2621.5,0.1904]
[1751994830682,3.81424087,2621.8,2621.5,0.1904]
[1751994830988,17.15110349,2621.9,2621.5,0.1904]
[1751994831288,13.337,2621.9,2621.5,0.1904]
[1751994831786,13.337,2621.9,2621.8,0.1904]
[1751994832160,17.11671796,2622.2,2621.8,0.1904]
[1751994832363,3.81382583,2622.1,2621.8,0.1904]
[1751994832780,13.303,2622.2,2621.6,3.852588]
[1751994832984,13.303,2622.2,2622.0,0.1904]
[1751994833189,13.303,2622.2,2622.0,4.00421222]
[1751994833389,3.81331186,2622.4,2622.0,0.1904]
[1751994833592,13.291,2622.5,2622.0,0.1904]
[1751994833760,0.8259,2622.0,2621.2,3.81501561]
[1751994833959,0.8259,2622.0,2620.8,9.167]
[1751994833960,0.8259,2622.0,2620.9,3.81539122]
[1751994834296,0.8259,2622.0,2620.9,1.37440912]
[1751994834297,3.81491754,2621.3,2620.9,1.37440912]
[1751994834498,13.284,2621.9,2621.1,0.7854]
[1751994834715,3.81383365,2622.1,2621.5,3.81452764]
[1751994835005,3.81412176,2621.9,2621.4,3.81467817]
[1751994835301,3.81373708,2622.1,2621.1,11.24051525]
[1751994835302,3.81446781,2621.6,2621.1,11.24051525]
[1751994835467,3.81446781,2621.6,2621.1,4.60051525]
[1751994835670,3.81461292,2621.5,2621.1,0.82355192]
[1751994836065,17.09109502,2621.9,2621.1,0.82355192]
[1751994836066,3.81440454,2621.7,2621.2,3.81503054]
[1751994836499,3.81431994,2621.7,2621.2,3.81496854]
[1751994836896,3.81424475,2621.8,2621.2,3.81496854]
[1751994837101,13.277,2621.9,2621.3,3.85299475]
[1751994837308,13.277,2621.9,2621.3,3.85299695]
[1751994837475,17.09106811,2621.9,2621.4,3.81464586]
[1751994837675,3.81375145,2622.1,2621.6,3.81439883]
[1751994838028,3.81347044,2622.3,2621.6,3.81439883]
[1751994838029,3.81346088,2622.3,2621.8,3.81407611]
[1751994838305,4.56946758,2622.4,2621.9,3.81401843]
[1751994838512,0.7561,2622.4,2621.9,3.81401843]
[1751994838697,4.56947513,2622.4,2621.9,3.81401843]
[1751994839003,4.56947513,2622.4,2621.7,3.85242081]
[1751994839004,17.06723699,2622.5,2622.0,3.81377666]
[1751994839209,4.56278281,2624.2,2622.0,3.81377666]
[1751994839210,0.0418181,2623.2,2622.4,3.81322667]
[1751994839507,0.0418181,2623.2,2622.1,0.03813737]
[1751994839508,3.81242851,2623.0,2622.1,0.03813737]
[1751994839675,0.8038,2622.5,2621.3,1.68679957]
[1751994839876,3.81330079,2622.4,2621.4,1.32395429]
[1751994840181,3.81330079,2622.4,2621.0,2.44455056]
[1751994840182,3.81471417,2621.5,2621.0,0.7959]
[1751994840375,0.8038,2621.8,2621.0,0.7959]
[1751994840376,0.8038,2621.8,2621.1,1.32456913]
[1751994840575,6.628,2622.2,2621.2,1.36241051]
[1751994840878,3.81271274,2622.9,2621.2,1.36241051]
[1751994840879,6.629,2622.5,2621.4,1.64865056]
[1751994841079,3.81282131,2622.8,2622.2,3.81352077]
[1751994841280,3.85397374,2623.2,2622.5,3.81306608]
[1751994841484,0.002,2622.3,2622.2,4.19487559]
[1751994841689,0.002,2622.3,2622.2,10.82594372]
[1751994841907,0.002,2622.3,2621.4,2.42555056]
[1751994842109,0.002,2622.3,2621.2,2.21155639]
[1751994842110,3.81445408,2621.7,2621.5,1.32285873]
[1751994842435,14.38294311,2622.3,2621.1,0.03815192]
[1751994842436,3.81400377,2622.0,2621.1,0.03815192]
[1751994842733,3.81453698,2621.6,2621.1,3.81518044]
[1751994842917,3.81365172,2622.2,2621.0,2.45703632]
[1751994842918,3.81365172,2622.2,2621.0,2.49518969]
[1751994843103,3.81388253,2622.0,2620.9,6.632]
[1751994843303,3.81402799,2621.9,2621.0,1.32404803]
[1751994843498,3.81468512,2621.5,2620.9,10.44742789]
[1751994843738,3.81468512,2621.5,2621.4,0.1904]
[1751994844401,3.81444826,2621.7,2621.4,0.1904]
[1751994844702,0.8167,2622.1,2620.8,1.64865056]
[1751994844903,3.81540769,2621.0,2620.8,6.627]
[1751994845205,0.7504,2621.4,2620.5,12.98300023]
[1751994845435,0.7504,2621.4,2620.6,7.98813336]
[1751994845436,3.81529218,2621.1,2620.6,7.98813336]
[1751994845736,3.81530898,2621.1,2620.7,3.4230876]
[1751994845930,3.81530898,2621.1,2620.7,2.09711344]
[1751994846143,3.81509946,2621.2,2620.7,5.91279939]
[1751994846338,4.56520149,2621.4,2620.7,2.09711344]
[1751994846339,0.7504,2621.4,2620.7,2.09711344]
[1751994846637,3.8151857,2621.2,2620.8,1.2918498]
[1751994846931,3.81504654,2621.2,2620.7,5.91288251]
[1751994847096,3.81524473,2621.1,2620.7,2.09711344]
[1751994847300,3.81504654,2621.2,2620.5,9.167]
[1751994847301,3.81462216,2621.5,2620.5,9.167]
[1751994847530,3.81528653,2621.1,2620.6,11.79081338]
[1751994847734,3.81528653,2621.1,2620.7,1.32573499]
[1751994847949,3.81555839,2620.9,2620.5,9.167]
[1751994848148,3.81462337,2621.5,2620.6,1.32580998]
[1751994848315,0.7896,2621.7,2620.6,3.85397308]
[1751994848316,3.81499503,2621.3,2620.6,3.85397308]
[1751994848508,0.7896,2621.7,2620.7,1.32568553]
[1751994848824,0.7896,2621.7,2620.8,1.36359995]
[1751994849027,3.81536155,2621.0,2620.8,6.606]
[1751994849226,3.81536155,2621.0,2620.9,0.34467881]
[1751994849434,3.8152687,2621.1,2620.9,0.34467881]
[1751994849634,3.8152687,2621.1,2621.0,0.34467881]
[1751994849837,0.7896,2621.7,2621.0,0.34467881]
[1751994850139,0.7896,2621.7,2620.8,6.606]
[1751994850140,0.7896,2621.7,2621.1,0.34467881]
[1751994850446,3.81488505,2621.4,2620.7,4.22237158]
[1751994850841,3.81488505,2621.4,2620.7,0.03421996]
[1751994851040,3.81488505,2621.4,2620.5,9.74242411]
[1751994851240,0.7896,2621.7,2620.4,9.04615056]
[1751994851241,3.81543044,2621.0,2620.4,9.04615056]
[1751994851442,3.81524949,2621.1,2620.5,0.38292809]
[1751994851609,0.35607065,2621.0,2620.5,4.19892032]
[1751994851808,3.81533889,2621.0,2620.5,3.85415288]
[1751994852107,0.03815645,2621.1,2620.5,0.03816065]
[1751994852447,3.81544845,2621.0,2620.5,4.19901508]
[1751994852628,0.03815645,2621.1,2620.5,3.8542151]
[1751994852812,3.81526403,2621.1,2620.5,4.95457745]
[1751994853037,3.81555909,2620.9,2620.5,0.03816065]
[1751994853214,0.03815645,2620.8,2620.4,0.55599953]
[1751994853415,3.85384876,2620.8,2620.4,0.55599953]
[1751994853610,3.81530284,2621.1,2620.5,3.81594413]
[1751994853835,3.81530445,2621.1,2620.5,3.81606563]
[1751994854141,3.81530445,2621.1,2620.4,4.41034799]
[1751994854142,0.03815645,2621.0,2620.6,3.81589871]
[1751994854332,3.85352868,2621.0,2620.5,3.85415314]
[1751994854537,3.85352868,2621.0,2620.5,0.03816065]
[1751994854734,3.81548323,2620.9,2620.8,0.1904]
[1751994854935,4.00531209,2621.3,2620.8,0.1904]
[1751994854936,0.03815645,2621.2,2620.8,0.1904]
[1751994855155,3.81357422,2622.3,2620.8,0.1904]
[1751994855156,3.81417241,2621.9,2621.3,3.81483848]
[1751994855445,3.81417241,2621.9,2621.8,0.1904]
[1751994855446,3.81402799,2621.9,2621.8,0.1904]
[1751994855650,3.81395823,2622.0,2621.8,0.1904]
[1751994855948,3.81395415,2622.0,2621.8,0.1904]
[1751994856150,3.81383651,2622.1,2621.8,0.1904]
[1751994856448,6.574,2622.3,2621.8,0.1904]
[1751994856748,3.81402799,2621.9,2621.8,0.1904]
[1751994857118,3.81435667,2621.7,2621.3,0.03814901]
[1751994857313,3.81402799,2621.9,2621.6,0.1904]
[1751994857537,3.81431895,2621.7,2621.6,0.1904]
[1751994857745,3.81431895,2621.7,2621.6,0.34475922]
[1751994857915,3.81446444,2621.6,2621.4,0.1904]
[1751994858116,3.81460995,2621.5,2621.4,0.1904]
[1751994858360,4.00500995,2621.5,2621.4,0.34491287]
[1751994858523,0.1904,2621.5,2621.0,0.53541723]
[1751994858851,4.00532476,2621.3,2620.8,0.1904]
[1751994859014,3.81515108,2621.2,2620.9,0.34509386]
[1751994859211,0.1904,2621.3,2621.0,0.34509386]
[1751994859435,0.1904,2621.3,2620.8,0.1904]
[1751994859436,3.81519347,2621.1,2620.5,4.63090794]
[1751994859665,3.81519347,2621.1,2620.6,0.34507466]
[1751994859867,3.81519347,2621.1,2621.0,0.1904]
[1751994860251,3.81505847,2621.2,2621.0,0.1904]
[1751994860592,3.81404281,2621.9,2621.0,0.1904]
[1751994860750,3.81497621,2621.3,2621.0,0.1904]
[1751994860952,3.81497621,2621.3,2620.8,3.85370302]
[1751994861149,3.81438735,2621.7,2621.2,0.1904]
[1751994861363,6.56,2621.7,2621.2,0.1904]
[1751994861566,10.37435019,2621.7,2621.5,0.1904]
[1751994861780,6.56,2621.7,2621.5,0.1904]
[1751994861946,3.81446444,2621.6,2621.5,0.1904]
[1751994862279,3.81439178,2621.7,2621.5,0.535409]
[1751994862480,3.81439178,2621.7,2621.6,0.345009]
[1751994862682,5.25229227,2621.7,2621.6,0.345009]
[1751994863243,3.81446444,2621.6,2620.7,0.8013]
[1751994863446,0.1904,2621.4,2620.9,0.1904]
[1751994863648,3.81531269,2621.1,2620.9,0.1904]
[1751994863868,3.81511844,2621.2,2620.9,0.1904]
[1751994864188,3.81533765,2621.0,2620.9,0.1904]
[1751994864341,3.81519209,2621.1,2620.9,0.34526509]
[1751994864679,0.1904,2621.2,2620.7,0.1904]
[1751994864680,3.81562881,2620.8,2620.7,0.1904]
[1751994864882,3.81562881,2620.8,2620.7,0.3453488]
[1751994865087,11.18020885,2620.9,2620.6,0.1904]
[1751994865088,0.8057,2620.9,2620.6,0.1904]
[1751994865287,3.81577441,2620.7,2620.6,0.1904]
[1751994865980,3.81637884,2620.3,2620.0,0.86346793]
[1751994866141,3.81642828,2620.3,2620.2,0.1904]
[1751994866348,3.81642828,2620.3,2620.2,0.53574738]
[1751994867066,3.81655061,2620.2,2620.1,0.1904]
[1751994867372,3.81650255,2620.2,2620.1,0.1904]
[1751994867699,0.03817085,2620.3,2620.1,0.1904]
[1751994868193,3.85452871,2620.3,2620.1,0.1904]
[1751994868396,13.119,2620.4,2620.1,0.1904]
[1751994868609,16.93533638,2620.4,2620.1,0.1904]
[1751994868762,3.81650255,2620.2,2620.1,0.1904]
[1751994869167,3.85463829,2620.3,2620.1,0.1904]
[1751994869386,3.81650255,2620.2,2620.1,0.1904]
[1751994869985,3.8177769,2619.4,2619.3,0.1904]
[1751994870389,0.1904,2619.8,2619.3,0.1904]
[1751994870600,3.81752242,2619.5,2619.0,3.97582586]
[1751994870776,3.85569327,2619.5,2619.0,0.15758251]
[1751994870973,0.03817085,2619.5,2619.0,0.15758251]
[1751994871299,0.03817085,2619.5,2619.0,0.1194]
[1751994871464,3.85541855,2619.7,2619.0,0.1194]
[1751994871668,1.07971271,2619.7,2618.4,0.1194]
[1751994871888,3.81755905,2619.5,2618.5,1.36409681]
[1751994872090,3.81810545,2619.1,2619.0,0.001]
[1751994872318,10.4162763,2619.1,2619.0,0.001]
[1751994872490,11.26233927,2619.1,2619.0,0.001]
[1751994873123,12.01803927,2619.1,2619.0,0.001]
[1751994873422,12.01703927,2619.1,2619.0,0.001]
[1751994874194,11.13280545,2619.1,2619.0,0.001]
[1751994875304,3.81912618,2618.4,2618.3,0.1034495]
[1751994875620,11.13280545,2619.1,2618.3,0.1034495]
[1751994875621,3.81898033,2618.5,2618.3,0.1034495]
[1751994875824,10.41829703,2618.4,2618.3,0.1034495]
[1751994876128,6.561,2618.5,2618.3,0.1034495]
[1751994876299,6.59817085,2618.5,2618.3,0.1034495]
[1751994876622,6.59817085,2618.6,2618.4,3.81912618]
[1751994877016,6.59817085,2618.6,2618.3,3.92264512]
[1751994877214,6.56,2618.6,2618.5,3.81898033]
[1751994877725,0.03817085,2619.0,2618.3,0.1034495]
[1751994878027,6.562,2618.9,2618.8,3.81847251]
[1751994878227,0.03817085,2619.3,2618.8,3.81847251]
[1751994878523,0.03817085,2619.3,2618.3,3.92264826]
[1751994878524,6.561,2619.2,2618.9,3.81839168]
[1751994878724,0.03817085,2619.1,2618.8,3.81846426]
[1751994878932,6.561,2619.0,2618.9,3.81838168]
[1751994879091,6.561,2619.0,2618.8,3.81847319]
[1751994880396,0.03817085,2618.9,2618.3,0.1034495]
[1751994880595,6.561,2619.0,2618.9,0.1904]
[1751994880795,6.561,2619.1,2618.9,0.1904]
[1751994881020,6.59917085,2619.1,2618.9,0.1904]
[1751994881240,0.03817085,2619.1,2618.7,0.1904]
[1751994881404,6.561,2619.0,2618.7,0.1904]
[1751994881726,0.03817085,2618.9,2618.7,0.1904]
[1751994882633,0.03817085,2618.9,2618.6,3.81876941]
[1751994883205,0.03817085,2618.9,2618.5,4.00930311]
[1751994883425,0.03817085,2618.9,2618.5,0.1904]
[1751994883426,1.09895526,2618.9,2618.5,0.1904]
[1751994883629,4.00938096,2618.5,2618.3,0.1034495]
[1751994883951,13.122,2618.4,2618.3,0.1034495]
[1751994885504,16.94112618,2618.4,2618.3,0.1034495]
[1751994886140,17.76802618,2618.4,2618.3,0.1034495]
[1751994886511,0.8269,2617.8,2616.9,0.1194]
[1751994886725,13.15817085,2617.7,2617.3,3.82062882]
[1751994886967,13.12,2617.7,2617.4,0.1904]
[1751994887270,3.85853298,2617.6,2617.4,0.1904]
[1751994887434,0.03817085,2617.6,2616.9,0.1194]
[1751994887638,0.22857085,2617.6,2617.2,0.1904]
[1751994888339,4.04887781,2617.6,2617.2,0.1904]
[1751994888733,3.82045598,2617.5,2617.2,0.1904]
[1751994889072,13.16017085,2617.4,2617.2,0.1904]
[1751994889368,3.82073128,2617.3,2617.2,0.1904]
[1751994889670,3.85890213,2617.3,2617.2,0.1904]
[1751994889972,0.03817085,2617.3,2617.2,0.1904]
[1751994890267,3.85890213,2617.3,2617.2,0.1904]
[1751994891329,3.82102327,2617.1,2616.9,0.1904]
[1751994891532,16.97919412,2617.1,2616.7,0.1904]
[1751994891758,16.94102327,2617.1,2616.7,0.1904]
[1751994892134,0.1904,2617.2,2616.7,0.1904]
[1751994892350,13.121,2617.1,2616.8,0.03821461]
[1751994892558,13.12,2617.1,2616.7,3.82160431]
[1751994892769,13.12,2617.1,2616.8,0.03821461]
[1751994892942,13.12,2617.1,2616.6,0.1194]
[1751994893148,13.12,2617.1,2616.7,3.82149332]
[1751994893475,13.12,2617.1,2617.0,3.92461877]
[1751994894273,13.119,2617.3,2617.0,0.1034495]
[1751994894477,13.15717085,2617.2,2617.0,0.1034495]
[1751994894687,13.119,2617.2,2617.1,3.82102327]
[1751994895376,13.12,2617.4,2617.0,0.1034495]
[1751994895551,13.12,2617.4,2617.3,3.82073128]
[1751994895735,13.12,2617.4,2617.3,3.94013128]
[1751994895945,13.119,2617.6,2617.4,3.82049053]
[1751994896445,13.119,2617.6,2617.5,3.82043935]
[1751994896876,0.7725,2618.4,2617.3,3.97833386]
[1751994897112,13.15617085,2618.3,2617.3,3.97833386]
[1751994897314,13.118,2618.3,2617.3,3.97833386]
[1751994897510,0.03817085,2618.2,2617.8,3.81988615]
[1751994897711,13.117,2618.1,2617.8,3.81988615]
[1751994897883,13.117,2618.1,2617.9,3.81983727]
[1751994898084,3.81927253,2618.3,2617.8,3.81997552]
[1751994898310,0.03817085,2618.4,2617.9,3.81982197]
[1751994898620,0.03817085,2618.4,2617.7,0.03820147]
[1751994898621,6.558,2618.3,2618.0,3.81970336]
[1751994898796,13.8142002,2618.7,2617.9,0.1194]
[1751994898998,3.81898033,2618.5,2617.9,0.1194]
[1751994899324,6.92295142,2618.6,2617.8,0.03820001]
[1751994899325,3.8198556,2617.9,2617.8,0.03820001]
[1751994899513,3.82012012,2617.8,2617.2,1.32452653]
[1751994899708,4.61728076,2618.1,2617.2,1.32452653]
[1751994899709,16.97343661,2617.7,2617.2,1.32452653]
[1751994900018,3.82073128,2617.3,2617.0,0.1034495]
[1751994900196,16.97404812,2617.2,2617.1,1.32482054]
[1751994900397,3.82102327,2617.1,2617.0,0.1034495]
[1751994900598,13.115,2617.2,2617.0,1.4289639]
[1751994900815,13.81926701,2618.4,2617.1,5.26583245]
[1751994900816,16.93430654,2617.6,2617.1,5.26583245]
[1751994901061,13.114,2617.7,2617.3,3.82072616]
[1751994901338,13.114,2617.7,2617.1,4.47728982]
[1751994901339,3.85848009,2617.6,2617.1,4.47728982]
[1751994901508,3.82096081,2617.2,2617.0,0.1034495]
[1751994901712,13.15117085,2617.3,2617.0,0.1034495]
[1751994901948,13.113,2617.3,2617.1,3.0]
[1751994902132,13.113,2617.3,2617.0,0.1034495]
[1751994902445,3.82081353,2617.3,2617.0,0.1034495]
[1751994902642,3.82097203,2617.2,2617.0,0.1034495]
[1751994902828,3.82097203,2617.2,2617.1,0.1904]
[1751994903007,3.82102327,2617.1,2617.0,0.1034495]
[1751994903340,13.113,2617.3,2617.0,0.1034495]
[1751994903698,13.112,2617.5,2617.1,3.94040532]
[1751994904005,13.112,2617.6,2617.2,0.1904]
[1751994904211,13.112,2617.6,2617.1,0.1194]
[1751994904212,13.113,2617.6,2617.5,3.82043935]
[1751994904402,13.113,2617.6,2617.4,4.0109047]
[1751994904596,13.113,2617.6,2617.4,0.1904]
[1751994905107,13.113,2617.6,2617.5,3.82043935]
[1751994905310,13.112,2617.9,2617.4,4.79415552]
[1751994905510,4.63821562,2618.5,2617.4,4.79415552]
[1751994905511,13.111,2618.0,2617.9,3.8198556]
[1751994905717,13.111,2618.2,2618.0,3.81960846]
[1751994905920,13.111,2618.3,2618.0,3.81960846]
[1751994906139,0.03817085,2618.2,2618.1,4.0099638]
[1751994906321,9.174,2618.7,2617.8,0.03820001]
[1751994906322,12.99271582,2618.7,2618.2,3.81941792]
[1751994906632,12.99271582,2618.7,2617.8,0.03820001]
[1751994906633,10.73423947,2618.6,2618.1,0.1904]
[1751994906810,0.32222396,2618.5,2618.3,3.81922843]
[1751994907007,0.7973,2618.8,2618.3,3.81922843]
[1751994907326,0.32558959,2618.7,2618.4,3.81904894]
[1751994907628,0.32558959,2618.7,2618.4,3.81903604]
[1751994908208,4.61526685,2619.2,2618.5,3.81898033]
[1751994908410,6.91769581,2619.1,2618.6,3.81869676]
[1751994908729,0.32552496,2619.0,2618.6,3.81869846]
[1751994909098,6.554,2618.9,2618.7,3.81866828]
[1751994909295,6.554,2618.9,2618.5,0.0381898]
[1751994909496,6.554,2618.9,2618.8,3.81852272]
[1751994909497,6.553,2618.9,2618.8,3.81852272]
[1751994909718,0.83547085,2619.2,2618.9,3.81835434]
[1751994909920,6.553,2619.0,2618.7,3.8186158]
[1751994910096,6.59117085,2619.1,2618.7,3.8186158]
[1751994910301,6.59117085,2619.1,2618.8,3.81851765]
[1751994910602,0.03817085,2619.2,2618.8,3.81843299]
[1751994910810,3.81771214,2619.4,2618.9,3.81829651]
[1751994911011,6.552,2619.2,2618.6,3.85701348]
[1751994911336,0.03817085,2619.3,2619.0,3.81824422]
[1751994911517,0.03817085,2619.5,2618.8,0.03818542]
[1751994911832,6.551,2619.4,2618.8,0.03818542]
[1751994912211,6.551,2619.4,2618.9,3.81832682]
[1751994912427,10.36879578,2619.4,2618.9,3.81832682]
[1751994912604,6.551,2619.4,2619.1,3.81800895]
[1751994912808,10.3685245,2619.5,2619.0,3.85634653]
[1751994913209,10.36853564,2619.5,2618.7,0.1194]
[1751994913414,6.549,2619.4,2619.1,3.81802537]
[1751994913614,6.549,2619.4,2618.9,0.03818397]
[1751994913844,6.549,2619.4,2618.8,3.81845756]
[1751994914049,6.549,2619.4,2618.7,0.1194]
[1751994914612,6.549,2619.4,2618.7,0.51322228]
[1751994914947,6.549,2619.4,2619.2,3.81793127]
[1751994915150,0.7948,2620.3,2619.4,0.1194]
[1751994915322,3.8165561,2620.2,2619.6,3.817295]
[1751994915516,3.85478438,2620.2,2619.5,3.81739402]
[1751994915710,0.03817085,2620.1,2619.4,0.1194]
[1751994915911,3.81701018,2619.9,2618.9,0.1194]
[1751994916143,0.7802,2620.8,2619.6,3.81737669]
[1751994916311,13.8752,2620.8,2619.7,1.31247381]
[1751994916514,3.81602795,2620.6,2619.9,3.81693957]
[1751994916712,3.81595058,2620.6,2619.9,4.00733957]
[1751994916982,0.03817085,2620.7,2619.9,7.00733957]
[1751994916983,3.85428047,2620.5,2619.9,7.00733957]
[1751994917123,3.81636374,2620.3,2619.9,3.1904]
[1751994917443,3.85401994,2620.7,2619.9,7.83552747]
[1751994917739,3.81614391,2620.5,2619.9,7.83552747]
[1751994917944,3.81622026,2620.4,2619.9,7.83552747]
[1751994918160,3.85430563,2620.5,2619.9,7.83552747]
[1751994918323,3.81551988,2620.9,2619.9,7.95492747]
[1751994918324,13.093,2620.9,2619.9,7.95492747]
[1751994919014,16.90848931,2620.9,2619.9,7.95492747]
[1751994919215,3.81538468,2621.0,2619.9,7.95492747]
[1751994919459,3.85355553,2621.0,2619.9,7.95492747]
[1751994919750,0.7802,2620.6,2619.9,4.95492747]
[1751994919916,0.03817085,2620.5,2619.9,0.1904]
[1751994920110,3.81636382,2620.3,2619.9,0.1904]
[1751994920314,0.22857085,2620.5,2619.9,0.1904]
[1751994920315,0.03817085,2620.2,2619.9,0.1904]
[1751994920652,0.03817085,2620.4,2619.9,4.00733957]
[1751994920864,16.9047797,2620.7,2619.9,4.00733957]
[1751994921029,16.9047797,2620.7,2619.9,3.00733957]
[1751994921369,16.9047797,2620.7,2619.9,3.19773957]
[1751994921370,13.089,2620.7,2619.9,3.19773957]
[1751994921568,13.089,2620.7,2619.9,3.23590896]
[1751994921770,13.089,2620.7,2619.9,5.57603397]
[1751994921927,3.81563965,2620.8,2619.9,5.69543397]
[1751994922343,3.81578227,2620.7,2619.9,5.69543397]
[1751994923160,0.7802,2620.9,2619.9,5.69543397]
[1751994923350,3.81658677,2620.2,2619.9,3.3098]
[1751994923726,3.81658677,2620.2,2619.9,0.3098]
[1751994923927,3.81643437,2620.3,2619.9,0.3098]
[1751994924157,3.81637196,2620.3,2619.9,0.3098]
[1751994925152,3.85448394,2620.4,2619.9,0.1904]
[1751994925463,3.81641913,2620.3,2619.9,0.1904]
[1751994925661,3.81651004,2620.2,2619.9,0.1904]
[1751994926162,3.81670482,2620.1,2619.9,0.1904]
[1751994926365,3.81879389,2620.0,2619.9,0.1904]
[1751994926656,0.002,2620.0,2619.9,3.81693957]
[1751994926860,0.002,2620.0,2619.9,4.58033525]
[1751994927031,0.002,2620.0,2619.9,5.58033525]
[1751994927228,0.002,2620.0,2619.9,5.61850464]
[1751994927436,0.002,2620.0,2619.9,5.73790464]
[1751994927638,0.002,2620.0,2619.9,5.69973525]
[1751994927838,0.002,2620.0,2619.9,1.1194]
[1751994928061,0.002,2620.0,2619.9,11.47433957]
[1751994928849,0.002,2620.0,2619.9,11.47333957]
[1751994929276,0.002,2620.0,2619.9,12.02333957]
[1751994929571,1e-08,2620.0,2619.9,22.02333957]
[1751994929776,1e-08,2620.0,2619.9,25.62607501]
[1751994929970,1e-08,2620.0,2619.9,25.91628129]
[1751994931877,1e-08,2620.0,2619.9,27.23158202]
[1751994932749,1e-08,2620.0,2619.9,27.22858202]
[1751994933076,1e-08,2620.0,2619.9,15.07207501]
[1751994933276,1e-08,2620.0,2619.9,1.1194]
[1751994933475,1e-08,2620.0,2619.9,7.6524]
[1751994933678,1e-08,2620.0,2619.9,1.0]
[1751994933679,3.8167939,2620.0,2619.9,1.0]
[1751994934167,3.8167939,2620.0,2618.8,1.64474612]
[1751994934168,0.8051,2619.3,2618.8,1.64474612]
[1751994934368,0.8051,2619.3,2618.6,2.21155639]
[1751994934369,3.81825124,2619.0,2618.9,1.32016825]
[1751994934678,3.81825124,2619.0,2618.7,1.64474612]
[1751994934679,3.81854284,2618.8,2618.7,1.64474612]
[1751994934877,3.8184849,2618.9,2618.7,1.64474612]
[1751994935041,3.85630597,2619.1,2618.7,1.64474612]
[1751994935042,3.81854284,2618.8,2618.7,1.64474612]
[1751994935239,3.81854284,2618.8,2618.7,1.32059846]
[1751994935476,0.8196,2619.8,2618.8,0.1194]
[1751994935678,3.81787602,2619.3,2618.9,3.0114653]
[1751994935876,3.81787602,2619.3,2618.9,9.5424653]
[1751994936045,0.03817085,2619.5,2619.0,1.35878097]
[1751994936251,3.81810545,2619.1,2619.0,1.32059846]
[1751994936452,3.81813193,2619.1,2619.0,1.32398248]
[1751994936652,4.61054143,2619.5,2619.0,0.1904]
[1751994936870,4.61054143,2619.5,2619.1,0.03818105]
[1751994937072,3.81745072,2619.6,2619.4,0.1904]
[1751994937287,3.81752242,2619.5,2619.4,0.1904]
[1751994937455,0.9568,2619.8,2619.4,0.1904]
[1751994937456,0.7664,2619.8,2619.4,0.1904]